[Event "45th FIDE Womens Olympiad 2024"]
[Site "Budapest"]
[Date "2024.09.13"]
[Round "3.94"]
[White "Al Maamari, Wafia Darwish"]
[Black "Librelato, Kathie Goulart"]
[Result "1/2-1/2"]
[ECO "E14"]
[WhiteElo "1908"]
[BlackElo "2181"]
[Annotator "RC"]
[PlyCount "129"]
[EventDate "2024.09.05"]
[EventType "team-tourn"]
[EventCountry "HUN"]
[SourceTitle "playchess.com"]
[Source "ChessBase"]
[SourceQuality "1"]
[WhiteTeam "United Arab Emirates"]
[BlackTeam "Brazil"]
[WhiteTeamCountry "UAE"]
[BlackTeamCountry "BRA"]
[TimeControl "40/5400+30:1800+30"]

1. Nf3 Nf6 2. b3 d5 3. Bb2 e6 4. c4 b6 5. e3 Bb7 6. Nc3 Nbd7 7. d4 Bd6 8. Bd3 O-O 9. O-O a6 10. Rc1 Qe7 11. Qe2 c5 12. cxd5 exd5 13. dxc5 Nxc5 14. Bb1 Nfe4 15. Rfd1 Rad8 16. g3 Bb8 17. Nh4 Qe6 18. b4 Nd7 19. Nf3 Rfe8 20. Qd3 Qf5 21. Qe2 Ndf6 22. Nxe4 dxe4 23. Nd4 Qh3 24. Qf1 Qh5 25. h4 Ng4 26. Qe2 Be5 27. Kg2 Qg6 28. Rh1 h5 29. Rcd1 Qf6 30. a3 b5 31. Ba2 g6 32. Rd2 Kh7 33. Rc1 Rc8 34. Rdc2 Rxc2 35. Rxc2 Rd8 36. Kg1 Rd7 37. Bb3 g5 38. hxg5 Qxg5 39. Rc5 h4 40. f4 exf3 41. Nxf3 Bxf3 42. Qxf3 f6 43. Bc2+ Kg7 44. Bxe5 Nxe5 45. Qf4 Qxg3+ 46. Qxg3+ hxg3 47. Kg2 Nc4 48. Kxg3 Nxe3 49. Be4 Nc4 50. a4 Nd6 51. Bc6 Rc7 52. axb5 axb5 53. Bf3 Rxc5 54. bxc5 Ne8 55. Kf4 Nc7 56. Ke3 Kf7 57. Kd3 Ke6 58. Kc3 f5 59. Kd4 Kf6 60. c6 Ke6 61. Kc5 f4 62. Bg4+ Ke5 63. Bf3 Ke6 64. Bg4+ Ke5 65. Bf3 1/2-1/2

[Event "45th FIDE Womens Olympiad 2024"]
[Site "Budapest"]
[Date "2024.09.13"]
[Round "3.95"]
[White "Alboredo, Julia"]
[Black "Mariam, Essa"]
[Result "1-0"]
[ECO "B27"]
[WhiteElo "2127"]
[BlackElo "1779"]
[Annotator "NA RC"]
[PlyCount "66"]
[EventDate "2024.09.05"]
[EventType "team-tourn"]
[EventCountry "HUN"]
[SourceTitle "playchess.com"]
[Source "ChessBase"]
[SourceQuality "1"]
[WhiteTeam "Brazil"]
[BlackTeam "United Arab Emirates"]
[WhiteTeamCountry "BRA"]
[BlackTeamCountry "UAE"]
[TimeControl "40/5400+30:1800+30"]

1. e4 c5 2. Nf3 g6 3. Bc4 Nc6 4. O-O Bg7 5. c3 f5 6. Bxg8 Rxg8 7. exf5 d6 8. fxg6 hxg6 9. d4 cxd4 10. Nxd4 Nxd4 11. cxd4 Qb6 12. Be3 Qxb2 13. Nd2 Qb5 14. Re1 Bd7 15. Ne4 Qd5 16. Bg5 Bc6 17. Bxe7 Kd7 18. Bf6 Qf5 19. d5 Qxd5 20. Bxg7 Qxd1 21. Raxd1 Rxg7 22. Nc5+ Kc8 23. Rxd6 Kc7 24. Rf6 Kb6 25. Ne6 Re7 26. Rb1+ Ka5 27. Nd4 Be4 28. Nb3+ Kb4 29. Re1 Ka3 30. f3 Kxa2 31. Nc1+ Kb2 32. fxe4 a5 33. Rf3 Rc7 1-0

[Event "45th FIDE Womens Olympiad 2024"]
[Site "Budapest"]
[Date "2024.09.13"]
[Round "3.96"]
[White "Anoud Eisa Bashkardi"]
[Black "Tamarozi, Isabelle"]
[Result "1-0"]
[ECO "B27"]
[WhiteElo "1811"]
[BlackElo "2059"]
[Annotator "NA RC"]
[PlyCount "95"]
[EventDate "2024.09.05"]
[EventType "team-tourn"]
[EventCountry "HUN"]
[SourceTitle "playchess.com"]
[Source "ChessBase"]
[SourceQuality "1"]
[WhiteTeam "United Arab Emirates"]
[BlackTeam "Brazil"]
[WhiteTeamCountry "UAE"]
[BlackTeamCountry "BRA"]
[TimeControl "40/5400+30:1800+30"]

1. e4 c5 2. Nf3 g6 3. d4 cxd4 4. Qxd4 Nf6 5. Nc3 Nc6 6. Qa4 d6 7. e5 dxe5 8. Nxe5 Bd7 9. Nxd7 Nxd7 10. Be3 Bg7 11. Rd1 O-O 12. Be2 Qc8 13. h4 a6 14. h5 b5 15. Qh4 Nf6 16. g4 Qe6 17. hxg6 fxg6 18. g5 Nh5 19. Bg4 Bxc3+ 20. bxc3 Qxa2 21. Bxh5 gxh5 22. Rd2 Qa1+ 23. Ke2 Qxc3 24. Qxh5 Qc4+ 25. Ke1 Qf7 26. g6 Qxg6 27. Qd5+ Kh8 28. Rh6 Rad8 29. Qxc6 Qg1+ 30. Ke2 Rxd2+ 31. Kxd2 Rd8+ 32. Kc3 Qe1+ 33. Kb3 Qb1+ 34. Ka3 b4+ 35. Ka4 Qb2 36. Qxa6 Qa3+ 37. Kb5 Qc3 38. Qb6 Rd5+ 39. Bc5 Qxc2 40. Qc6 Qd3+ 41. Kxb4 Qb1+ 42. Ka5 Qb3 43. Rh4 Rd8 44. Bd4+ Kg8 45. Rg4+ Kf8 46. Qh6+ Ke8 47. Qh5+ Qf7 48. Rg8+ 1-0

[Event "45th FIDE Womens Olympiad 2024"]
[Site "Budapest"]
[Date "2024.09.13"]
[Round "3.97"]
[White "February, Jesse Nikki"]
[Black "Rivera, Ingris"]
[Result "1-0"]
[ECO "B90"]
[WhiteElo "2013"]
[BlackElo "2171"]
[Annotator "RC"]
[PlyCount "79"]
[EventDate "2024.09.05"]
[EventType "team-tourn"]
[EventCountry "HUN"]
[SourceTitle "playchess.com"]
[Source "ChessBase"]
[SourceQuality "1"]
[WhiteTeam "South Africa"]
[BlackTeam "Colombia"]
[WhiteTeamCountry "RSA"]
[BlackTeamCountry "COL"]
[TimeControl "40/5400+30:1800+30"]

1. e4 c5 2. Nf3 d6 3. d4 cxd4 4. Nxd4 Nf6 5. Nc3 a6 6. h3 h5 7. Bg5 Nc6 8. Nb3 e6 9. Qd2 Be7 10. f4 b5 11. a3 Bb7 12. Be2 Qb6 13. O-O-O O-O-O 14. Bf3 Kb8 15. Qe2 Qc7 16. Rd2 Rhe8 17. Rhd1 g6 18. Qf2 Ng8 19. Bxe7 Ngxe7 20. g4 hxg4 21. hxg4 g5 22. f5 Ne5 23. Be2 N7c6 24. Nd4 Nxd4 25. Qxd4 Rh8 26. Qe3 exf5 27. exf5 f6 28. Nd5 Bxd5 29. Rxd5 Rh2 30. c3 Qc6 31. Kb1 Rd7 32. Qe4 Qb6 33. R5d4 Kc7 34. Bf3 Nxf3 35. Qxf3 Re7 36. Rxd6 Qc5 37. Qg3 Qe5 38. Qg1 Kc8 39. Qb6 Qe4+ 40. Ka1 1-0

[Event "45th FIDE Womens Olympiad 2024"]
[Site "Budapest"]
[Date "2024.09.13"]
[Round "3.98"]
[White "Argote Heredia, Valentina"]
[Black "Badenhorst, Chloe"]
[Result "1/2-1/2"]
[ECO "B12"]
[WhiteElo "2144"]
[BlackElo "1981"]
[Annotator "NA RC"]
[PlyCount "64"]
[EventDate "2024.09.05"]
[EventType "team-tourn"]
[EventCountry "HUN"]
[SourceTitle "playchess.com"]
[Source "ChessBase"]
[SourceQuality "1"]
[WhiteTeam "Colombia"]
[BlackTeam "South Africa"]
[WhiteTeamCountry "COL"]
[BlackTeamCountry "RSA"]
[TimeControl "40/5400+30:1800+30"]

1. e4 c6 2. d4 d5 3. e5 c5 4. dxc5 e6 5. a3 Bxc5 6. b4 Be7 7. Nf3 Nd7 8. Bb2 Nh6 9. Nbd2 f6 10. c4 O-O 11. cxd5 Nxe5 12. dxe6 Bxe6 13. Nd4 Bd5 14. N2f3 Nxf3+ 15. Nxf3 Re8 16. Be2 Bxf3 17. gxf3 Qb6 18. Qd4 Qe6 19. Qc4 Bd6 20. O-O Rac8 21. Qxe6+ Rxe6 22. Bd3 Re7 23. Rac1 Rd8 24. Be4 Nf7 25. Kg2 Ng5 26. Bd5+ Kf8 27. Rcd1 Ne6 28. Bxe6 Rxe6 29. Bd4 b6 30. Be3 Ke7 31. Rc1 Rd7 32. Rc4 Rc7 1/2-1/2

[Event "45th FIDE Womens Olympiad 2024"]
[Site "Budapest"]
[Date "2024.09.13"]
[Round "3.99"]
[White "Klaasen, Robyn Julian"]
[Black "Mogollon Tobar, Nicolle Julieth"]
[Result "1/2-1/2"]
[ECO "E04"]
[WhiteElo "1764"]
[BlackElo "2045"]
[Annotator "NA RC"]
[PlyCount "96"]
[EventDate "2024.09.05"]
[EventType "team-tourn"]
[EventCountry "HUN"]
[SourceTitle "playchess.com"]
[Source "ChessBase"]
[SourceQuality "1"]
[WhiteTeam "South Africa"]
[BlackTeam "Colombia"]
[WhiteTeamCountry "RSA"]
[BlackTeamCountry "COL"]
[TimeControl "40/5400+30:1800+30"]

1. d4 d5 2. Nf3 Nf6 3. g3 e6 4. Bg2 c5 5. c4 dxc4 6. O-O Nc6 7. dxc5 Qxd1 8. Rxd1 Bxc5 9. Nc3 a6 10. Bg5 Bd7 11. Bxf6 gxf6 12. Ne4 Be7 13. Nd6+ Bxd6 14. Rxd6 Ke7 15. Rad1 Rhd8 16. R6d2 e5 17. Nh4 Be6 18. Bxc6 Rxd2 19. Rxd2 bxc6 20. Ng2 Rb8 21. Ne3 Rb5 22. Rc2 Rc5 23. Nd1 Rd5 24. Nc3 Rd4 25. f3 f5 26. e3 Rd3 27. Kf2 h5 28. Re2 Kd6 29. Rc2 Bd5 30. Ke2 e4 31. f4 Be6 32. Rc1 Kc5 33. Rc2 Rd7 34. a3 f6 35. h4 Rg7 36. Kf2 Kb6 37. Rd2 Rd7 38. Rc2 c5 39. Ke2 Rd3 40. Na4+ Kb5 41. Nc3+ Kc6 42. Rc1 Bf7 43. Rc2 Kd6 44. Rc1 Kc6 45. Rc2 Kd6 46. Rc1 Kc6 47. Rc2 Kb6 48. Rc1 Kc6 1/2-1/2

[Event "45th FIDE Womens Olympiad 2024"]
[Site "Budapest"]
[Date "2024.09.13"]
[Round "3.100"]
[White "Lopez Rayo, Isabella"]
[Black "Nel, Hayley"]
[Result "1-0"]
[ECO "B11"]
[WhiteElo "1952"]
[BlackElo "1753"]
[Annotator "NA RC"]
[PlyCount "95"]
[EventDate "2024.09.05"]
[EventType "team-tourn"]
[EventCountry "HUN"]
[SourceTitle "playchess.com"]
[Source "ChessBase"]
[SourceQuality "1"]
[WhiteTeam "Colombia"]
[BlackTeam "South Africa"]
[WhiteTeamCountry "COL"]
[BlackTeamCountry "RSA"]
[TimeControl "40/5400+30:1800+30"]

1. e4 c6 2. Nc3 d5 3. Nf3 dxe4 4. Nxe4 Nf6 5. Qe2 Bg4 6. h3 Bxf3 7. Qxf3 Nxe4 8. Qxe4 Qd5 9. Qg4 Nd7 10. Bc4 Qe5+ 11. Be2 e6 12. d4 Qa5+ 13. c3 h5 14. Qg3 h4 15. Qf4 Nf6 16. O-O O-O-O 17. b4 Qc7 18. Qf3 Nd5 19. a3 Bd6 20. c4 Nf4 21. Bd1 g5 22. c5 Be7 23. Be3 f5 24. Bb3 Nd5 25. Bd2 g4 26. hxg4 h3 27. g3 fxg4 28. Qxg4 Qd7 29. Rae1 Bf6 30. Qxe6 Qxe6 31. Rxe6 Bxd4 32. Bxd5 Rxd5 33. Be3 Bb2 34. Bc1 Bd4 35. Rh6 Rxh6 36. Bxh6 h2+ 37. Kh1 Rf5 38. Bf4 Bb2 39. Kxh2 Rf7 40. Rb1 Bxa3 41. Rb3 Rxf4 42. gxf4 Bc1 43. Kg3 Kd7 44. Rb1 Ba3 45. Kg4 a6 46. Kg5 Ke7 47. Kg6 Kf8 48. f5 1-0

[Event "45th FIDE Womens Olympiad 2024"]
[Site "Budapest"]
[Date "2024.09.13"]
[Round "3.101"]
[White "Martynkova, Olena"]
[Black "Samaganova, Aleksandra"]
[Result "1-0"]
[ECO "A96"]
[WhiteElo "2176"]
[BlackElo "1948"]
[Annotator "RC"]
[PlyCount "61"]
[EventDate "2024.09.05"]
[EventType "team-tourn"]
[EventCountry "HUN"]
[SourceTitle "playchess.com"]
[Source "ChessBase"]
[SourceQuality "1"]
[WhiteTeam "Lithuania"]
[BlackTeam "Kyrgyzstan"]
[WhiteTeamCountry "LTU"]
[BlackTeamCountry "KGZ"]
[TimeControl "40/5400+30:1800+30"]

1. d4 e6 2. Nf3 f5 3. g3 Nf6 4. Bg2 Be7 5. O-O O-O 6. c4 d6 7. Nc3 Ne4 8. Qc2 Nxc3 9. Qxc3 a5 10. b3 Bf6 11. Bb2 Nc6 12. Qd2 Qe8 13. d5 Nd8 14. dxe6 Nxe6 15. Nd4 Bxd4 16. Bxd4 f4 17. Bb2 Qg6 18. Kh1 Qh6 19. Be4 Nc5 20. Bd5+ Be6 21. Rg1 c6 22. Bxe6+ Nxe6 23. Qxd6 Rad8 24. Qe5 fxg3 25. Qxg3 Rf5 26. Rad1 Rff8 27. Rd6 Rxd6 28. Qxd6 Qh3 29. Qxe6+ Qxe6 30. Rxg7+ Kh8 31. Rg6+ 1-0

[Event "45th FIDE Womens Olympiad 2024"]
[Site "Budapest"]
[Date "2024.09.13"]
[Round "3.102"]
[White "Zhanybekova, Begimay"]
[Black "Limontaite, Simona"]
[Result "1-0"]
[ECO "C10"]
[WhiteElo "1784"]
[BlackElo "2177"]
[Annotator "RC"]
[PlyCount "83"]
[EventDate "2024.09.05"]
[EventType "team-tourn"]
[EventCountry "HUN"]
[SourceTitle "playchess.com"]
[Source "ChessBase"]
[SourceQuality "1"]
[WhiteTeam "Kyrgyzstan"]
[BlackTeam "Lithuania"]
[WhiteTeamCountry "KGZ"]
[BlackTeamCountry "LTU"]
[TimeControl "40/5400+30:1800+30"]

1. e4 e6 2. d4 d5 3. Nc3 h6 4. Bd3 Nc6 5. Nf3 Nb4 6. Be2 dxe4 7. Nxe4 Nf6 8. Nxf6+ Qxf6 9. c4 Nc6 10. O-O Bd6 11. Be3 O-O 12. a3 Rd8 13. Bd3 Bf4 14. Qd2 e5 15. d5 Bf5 16. Bxf4 exf4 17. Bxf5 Qxf5 18. Rfe1 Qf6 19. Re4 Ne7 20. Rxf4 Qd6 21. Rd1 b5 22. cxb5 Qc5 23. Rd4 Qxb5 24. d6 cxd6 25. Rxd6 Re8 26. h3 Ng6 27. Qd5 Qxd5 28. R1xd5 a5 29. b4 axb4 30. axb4 Nf4 31. Rd2 Ra1+ 32. Kh2 Kh7 33. Rb2 Rb8 34. b5 Rb7 35. b6 Ne6 36. Ne5 Nc5 37. Rc6 Na4 38. Rb4 Ra2 39. f3 Re2 40. Nc4 Nc3 41. Nd6 Rd7 42. b7 1-0

[Event "45th FIDE Womens Olympiad 2024"]
[Site "Budapest"]
[Date "2024.09.13"]
[Round "3.103"]
[White "Baginskaite, Kamile"]
[Black "Lesbekova, Assel"]
[Result "0-1"]
[ECO "D31"]
[WhiteElo "2103"]
[BlackElo "1903"]
[Annotator "NA RC"]
[PlyCount "78"]
[EventDate "2024.09.05"]
[EventType "team-tourn"]
[EventCountry "HUN"]
[SourceTitle "playchess.com"]
[Source "ChessBase"]
[SourceQuality "1"]
[WhiteTeam "Lithuania"]
[BlackTeam "Kyrgyzstan"]
[WhiteTeamCountry "LTU"]
[BlackTeamCountry "KGZ"]
[TimeControl "40/5400+30:1800+30"]

1. d4 d5 2. c4 e6 3. Nc3 a6 4. cxd5 exd5 5. Bf4 c6 6. e3 Bd6 7. Bxd6 Qxd6 8. Bd3 Ne7 9. Qc2 Bg4 10. Nge2 Bh5 11. Nf4 Bg6 12. Nxg6 hxg6 13. Qb3 b5 14. h3 Nd7 15. Be2 a5 16. a4 b4 17. Nb1 O-O 18. Nd2 c5 19. dxc5 Nxc5 20. Qd1 Qf6 21. Qc2 Rac8 22. Nf3 Ne4 23. Qb3 Rc7 24. O-O Rfc8 25. Rad1 Rc2 26. Nd4 Nd2 27. Qd3 Nxf1 28. Nxc2 Qxb2 29. Nd4 Rc3 30. Qb5 Nxe3 31. Qe8+ Kh7 32. fxe3 Nf5 33. Bf3 Nxe3 34. Re1 Qd2 35. Nc2 Nxc2 36. Re5 Re3 37. Rxe3 Qxe3+ 38. Qxe3 Nxe3 39. Kf2 b3 0-1

[Event "45th FIDE Womens Olympiad 2024"]
[Site "Budapest"]
[Date "2024.09.13"]
[Round "3.104"]
[White "Abaeva, Aiana"]
[Black "Sibajeva, Marija"]
[Result "1/2-1/2"]
[ECO "D37"]
[WhiteElo "1858"]
[BlackElo "2007"]
[Annotator "NA RC"]
[PlyCount "81"]
[EventDate "2024.09.05"]
[EventType "team-tourn"]
[EventCountry "HUN"]
[SourceTitle "playchess.com"]
[Source "ChessBase"]
[SourceQuality "1"]
[WhiteTeam "Kyrgyzstan"]
[BlackTeam "Lithuania"]
[WhiteTeamCountry "KGZ"]
[BlackTeamCountry "LTU"]
[TimeControl "40/5400+30:1800+30"]

1. d4 d5 2. c4 e6 3. Nf3 Nf6 4. Nc3 Be7 5. Bf4 c6 6. e3 O-O 7. Qc2 Nbd7 8. Bd3 h6 9. O-O dxc4 10. Bxc4 Nb6 11. Bb3 Nbd5 12. Be5 Nxc3 13. Qxc3 Bd7 14. Qd3 Qa5 15. Rac1 Rfd8 16. Rfd1 Rac8 17. h3 c5 18. dxc5 Bb5 19. Qc3 Rxd1+ 20. Rxd1 Qxc3 21. Bxc3 Bxc5 22. Nd4 Bd7 23. Nf5 exf5 24. Bxf6 Be6 25. Bxe6 fxe6 26. Be5 Re8 27. a3 Re7 28. Rd8+ Kh7 29. Kf1 Bb6 30. Rb8 Kg6 31. Ke2 Kf7 32. f4 Rd7 33. b4 Bd8 34. Bd4 Bb6 35. Bxb6 axb6 36. Rc8 Ke7 37. Rc3 e5 38. Rd3 exf4 39. exf4 Rc7 40. Kd2 Ke6 41. Re3+ 1/2-1/2

[Event "45th FIDE Womens Olympiad 2024"]
[Site "Budapest"]
[Date "2024.09.13"]
[Round "3.105"]
[White "Granados Ortiz, Maria Jose"]
[Black "Ryjanova, Julia"]
[Result "0-1"]
[ECO "B57"]
[WhiteElo "1935"]
[BlackElo "2255"]
[Annotator "RC"]
[PlyCount "84"]
[EventDate "2024.09.05"]
[EventType "team-tourn"]
[EventCountry "HUN"]
[SourceTitle "playchess.com"]
[Source "ChessBase"]
[SourceQuality "1"]
[WhiteTeam "Nicaragua"]
[BlackTeam "Australia"]
[WhiteTeamCountry "NCA"]
[BlackTeamCountry "AUS"]
[TimeControl "40/5400+30:1800+30"]

1. e4 c5 2. Nf3 Nc6 3. d4 cxd4 4. Nxd4 Qb6 5. Nxc6 bxc6 6. Nc3 g6 7. Bc4 d6 8. O-O Nf6 9. Qe2 Ng4 10. Re1 Bg7 11. Nd1 O-O 12. h3 Ne5 13. Be3 Qb4 14. Bd3 Nxd3 15. cxd3 Ba6 16. Rc1 Bxd3 17. Qd2 Qxd2 18. Bxd2 Rfc8 19. Nc3 Rab8 20. b3 h6 21. Be3 c5 22. Nd5 Rb7 23. f3 g5 24. Red1 Bb5 25. Bf2 Be5 26. Ne3 Bd7 27. Nc4 Bg7 28. Ne3 Be6 29. Nd5 Be5 30. Be1 f5 31. exf5 Bxf5 32. Ne3 Be6 33. Bc3 Bxc3 34. Rxc3 Kf7 35. Kf2 Rb4 36. Nc2 Rb7 37. Ne3 a5 38. Kg3 a4 39. bxa4 Ra8 40. Nc4 Rxa4 41. Ne3 Rxa2 42. h4 Re2 0-1

[Event "45th FIDE Womens Olympiad 2024"]
[Site "Budapest"]
[Date "2024.09.13"]
[Round "3.106"]
[White "Nguyen, Thu Giang"]
[Black "Cabezas Calero, Abigail Carolina"]
[Result "1-0"]
[ECO "C07"]
[WhiteElo "2068"]
[BlackElo "1824"]
[Annotator "NA RC"]
[PlyCount "89"]
[EventDate "2024.09.05"]
[EventType "team-tourn"]
[EventCountry "HUN"]
[SourceTitle "playchess.com"]
[Source "ChessBase"]
[SourceQuality "1"]
[WhiteTeam "Australia"]
[BlackTeam "Nicaragua"]
[WhiteTeamCountry "AUS"]
[BlackTeamCountry "NCA"]
[TimeControl "40/5400+30:1800+30"]

1. e4 e6 2. d4 d5 3. Nd2 c5 4. exd5 Qxd5 5. Ngf3 Nc6 6. Bc4 Qd8 7. Nb3 cxd4 8. O-O Nf6 9. Nbxd4 Bd7 10. Nb5 Na5 11. Be2 Nd5 12. c4 Bxb5 13. cxd5 Bxe2 14. Qxe2 Qxd5 15. Rd1 Qc4 16. Qd2 Qc7 17. Qg5 Nc6 18. Bf4 Qe7 19. Qg3 f6 20. Bd6 Qf7 21. Re1 Bxd6 22. Qxd6 e5 23. Rad1 Qe7 24. Qd5 Rd8 25. Qb3 Rxd1 26. Rxd1 Rf8 27. h3 Rf7 28. a3 Kf8 29. Qd5 Ke8 30. Qc4 Nd8 31. Qa4+ Nc6 32. Qc4 Kf8 33. b4 a6 34. Rd5 g6 35. Nd2 Kg7 36. Nb3 Rf8 37. Nc5 Kh8 38. Rd7 Qe8 39. Rxb7 Qc8 40. Qh4 h5 41. Qe4 f5 42. Qe3 f4 43. Qd3 Rf6 44. Qxa6 Qe8 45. b5 1-0

[Event "45th FIDE Womens Olympiad 2024"]
[Site "Budapest"]
[Date "2024.09.13"]
[Round "3.107"]
[White "Munoz Cortez, Anahi Alexandra"]
[Black "Shen, Zhiyuan"]
[Result "0-1"]
[ECO "B23"]
[WhiteElo "1868"]
[BlackElo "1969"]
[Annotator "NA RC"]
[PlyCount "63"]
[EventDate "2024.09.05"]
[EventType "team-tourn"]
[EventCountry "HUN"]
[SourceTitle "playchess.com"]
[Source "ChessBase"]
[SourceQuality "1"]
[WhiteTeam "Nicaragua"]
[BlackTeam "Australia"]
[WhiteTeamCountry "NCA"]
[BlackTeamCountry "AUS"]
[TimeControl "40/5400+30:1800+30"]

1. e4 c5 2. Nc3 Nc6 3. f4 g6 4. Nf3 Bg7 5. h3 d6 6. Bb5 Bd7 7. O-O Nf6 8. d3 O-O 9. Bxc6 Bxc6 10. Qe1 e6 11. g4 Nd7 12. Ne2 Qb6 13. c4 Rae8 14. f5 exf5 15. gxf5 gxf5 16. exf5 d5 17. Qg3 Rxe2 18. Bh6 Qxb2 19. Rab1 Rg2+ 20. Qxg2 Qxg2+ 21. Kxg2 Bxh6 22. Kf2 dxc4 23. dxc4 Be4 24. Rb2 Nb6 25. Rb5 Rc8 26. Ne5 Bg7 27. Ng4 Bxf5 28. Rc1 Bd3 29. Ke3 Bf5 30. Kf4 Be6 31. Kf3 Nxc4 32. Rxb7 0-1

[Event "45th FIDE Womens Olympiad 2024"]
[Site "Budapest"]
[Date "2024.09.13"]
[Round "3.108"]
[White "Vincent, Alaina"]
[Black "Alvarez Gutierrez, Patricia"]
[Result "1-0"]
[ECO "B12"]
[WhiteElo "1976"]
[BlackElo "1826"]
[Annotator "NA RC"]
[PlyCount "65"]
[EventDate "2024.09.05"]
[EventType "team-tourn"]
[EventCountry "HUN"]
[SourceTitle "playchess.com"]
[Source "ChessBase"]
[SourceQuality "1"]
[WhiteTeam "Australia"]
[BlackTeam "Nicaragua"]
[WhiteTeamCountry "AUS"]
[BlackTeamCountry "NCA"]
[TimeControl "40/5400+30:1800+30"]

1. e4 c6 2. d4 d5 3. e5 c5 4. Nf3 Nc6 5. dxc5 e6 6. Be3 Qc7 7. c3 Nge7 8. Bb5 Bd7 9. Bd4 Ng6 10. Bxc6 Bxc6 11. b4 a5 12. O-O Be7 13. Nbd2 O-O 14. a4 axb4 15. cxb4 Rfc8 16. b5 Be8 17. Nb3 Nf8 18. Qe2 Qd7 19. Rfc1 h6 20. h3 Nh7 21. Be3 f6 22. Bd4 f5 23. Be3 Nf8 24. Nfd4 Qc7 25. f4 Qb8 26. g4 fxg4 27. Qxg4 h5 28. Qg3 Bf7 29. Kh2 b6 30. Nc6 Qb7 31. cxb6 Kh7 32. Nba5 Rxa5 33. Nxa5 1-0

[Event "45th FIDE Womens Olympiad 2024"]
[Site "Budapest"]
[Date "2024.09.13"]
[Round "3.109"]
[White "Mendoza, Shania Mae"]
[Black "Fuad Kamel Jamaliah, Natalie"]
[Result "1-0"]
[ECO "B23"]
[WhiteElo "2013"]
[BlackElo "2003"]
[Annotator "NA RC"]
[PlyCount "81"]
[EventDate "2024.09.05"]
[EventType "team-tourn"]
[EventCountry "HUN"]
[SourceTitle "playchess.com"]
[Source "ChessBase"]
[SourceQuality "1"]
[WhiteTeam "Philippines"]
[BlackTeam "Jordan"]
[WhiteTeamCountry "PHI"]
[BlackTeamCountry "JOR"]
[TimeControl "40/5400+30:1800+30"]

1. e4 c5 2. Nc3 e6 3. d4 cxd4 4. Qxd4 Nc6 5. Qd3 a6 6. Bf4 Qf6 7. Nge2 Bb4 8. O-O-O Nge7 9. h4 Ng6 10. Bg3 Nge5 11. Qe3 Ng4 12. Qg5 Qxg5+ 13. hxg5 Bc5 14. f4 Nf2 15. Bxf2 Bxf2 16. Rd3 b5 17. e5 Nb4 18. Rdh3 Ke7 19. a3 Nc6 20. Ne4 Bb6 21. Rxh7 Rg8 22. Kb1 Rb8 23. N2g3 Nd4 24. Nd6 Bc7 25. Nge4 Bb7 26. Nxb7 Rxb7 27. Bd3 Rbb8 28. c3 Nc6 29. Nc5 Ra8 30. Be4 Bb6 31. Bxc6 dxc6 32. Ne4 Rad8 33. Kc2 Be3 34. g3 Bb6 35. R1h4 c5 36. g6 c4 37. gxf7 Kxf7 38. R4h6 Be3 39. Ng5+ Ke7 40. Rxe6+ Kf8 41. Rh2 1-0

[Event "45th FIDE Womens Olympiad 2024"]
[Site "Budapest"]
[Date "2024.09.13"]
[Round "3.110"]
[White "Serina Arafat"]
[Black "Frayna, Janelle Mae"]
[Result "0-1"]
[ECO "A01"]
[WhiteElo "1552"]
[BlackElo "2216"]
[Annotator "RC"]
[PlyCount "82"]
[EventDate "2024.09.05"]
[EventType "team-tourn"]
[EventCountry "HUN"]
[SourceTitle "playchess.com"]
[Source "ChessBase"]
[SourceQuality "1"]
[WhiteTeam "Jordan"]
[BlackTeam "Philippines"]
[WhiteTeamCountry "JOR"]
[BlackTeamCountry "PHI"]
[TimeControl "40/5400+30:1800+30"]

1. b3 e5 2. Bb2 Nc6 3. e3 Nf6 4. d4 exd4 5. exd4 d5 6. Nf3 Bd6 7. Bd3 Qe7+ 8. Be2 O-O 9. O-O Bg4 10. Re1 Rfe8 11. Nbd2 Ba3 12. Bxa3 Qxa3 13. Qc1 Qxc1 14. Raxc1 Ne4 15. Bb5 Nxd2 16. Rxe8+ Rxe8 17. Nxd2 Nxd4 18. Bxe8 Ne2+ 19. Kf1 Nxc1 20. a4 Bd1 21. b4 Bxc2 22. a5 Nd3 23. b5 Nc5 24. Nf3 Kf8 25. b6 axb6 26. Bb5 bxa5 27. Nd4 Bd3+ 28. Bxd3 Nxd3 29. Nb3 a4 30. Na1 Nb4 31. Ke2 d4 32. Kd2 c5 33. f3 b5 34. g4 g5 35. h3 Ke7 36. Kc1 Kd6 37. Kd2 c4 38. Kc1 Ke5 39. Kd2 Kf4 40. Kc1 Ke3 41. Kd1 d3 0-1

[Event "45th FIDE Womens Olympiad 2024"]
[Site "Budapest"]
[Date "2024.09.13"]
[Round "3.111"]
[White "Fronda, Jan Jodilyn"]
[Black "Boshra, Alshaeby"]
[Result "1-0"]
[ECO "B12"]
[WhiteElo "2165"]
[BlackElo "1939"]
[Annotator "RC"]
[PlyCount "71"]
[EventDate "2024.09.05"]
[EventType "team-tourn"]
[EventCountry "HUN"]
[SourceTitle "playchess.com"]
[Source "ChessBase"]
[SourceQuality "1"]
[WhiteTeam "Philippines"]
[BlackTeam "Jordan"]
[WhiteTeamCountry "PHI"]
[BlackTeamCountry "JOR"]
[TimeControl "40/5400+30:1800+30"]

1. e4 c6 2. d4 d5 3. e5 Bf5 4. Bd3 Bxd3 5. Qxd3 e6 6. Nf3 c5 7. dxc5 Bxc5 8. O-O Nc6 9. a3 Rc8 10. Nc3 Be7 11. Rd1 g5 12. Qb5 g4 13. Nd4 Qd7 14. Qe2 h5 15. Bf4 a6 16. Nb3 Qc7 17. Qe3 Na5 18. Nxd5 exd5 19. e6 Nc4 20. Qd4 Bf6 21. Qxd5 Nb6 22. Qe4 Qc6 23. Qf5 Qb5 24. Qe4 Qc6 25. Qf5 Qb5 26. Qe4 Qc6 27. Qf5 Qxc2 28. Rd3 Qxb2 29. Re1 Ne7 30. exf7+ Kf8 31. Qe6 Nbd5 32. Rxd5 Nxd5 33. Qxc8+ Kxf7 34. Qe6+ Kg7 35. Qxd5 Rd8 36. Qxd8 1-0

[Event "45th FIDE Womens Olympiad 2024"]
[Site "Budapest"]
[Date "2024.09.13"]
[Round "3.112"]
[White "Ruba Al-Qudah"]
[Black "Galas, Bernadette"]
[Result "0-1"]
[ECO "B21"]
[WhiteElo "1937"]
[BlackElo "2013"]
[Annotator "NA RC"]
[PlyCount "68"]
[EventDate "2024.09.05"]
[EventType "team-tourn"]
[EventCountry "HUN"]
[SourceTitle "playchess.com"]
[Source "ChessBase"]
[SourceQuality "1"]
[WhiteTeam "Jordan"]
[BlackTeam "Philippines"]
[WhiteTeamCountry "JOR"]
[BlackTeamCountry "PHI"]
[TimeControl "40/5400+30:1800+30"]

1. e4 c5 2. Be2 Nc6 3. f4 d6 4. Nf3 g6 5. O-O Bg7 6. d3 e6 7. c3 Nge7 8. Be3 O-O 9. a4 b6 10. Nbd2 d5 11. e5 d4 12. cxd4 Nd5 13. Nc4 Nxe3 14. Nxe3 Nxd4 15. Nc4 Nxe2+ 16. Qxe2 Bb7 17. Nd6 Bd5 18. Nd2 f6 19. N2c4 fxe5 20. fxe5 Qd7 21. Nb5 Bc6 22. Ncd6 Rad8 23. Rfe1 Rf4 24. h3 Rdf8 25. Rf1 a6 26. Nc3 Qd8 27. Nc4 Qd4+ 28. Kh1 Rf2 29. Rxf2 Rxf2 30. Qe3 Qxe3 31. Nxe3 Rxb2 32. Ncd1 Re2 33. Rb1 Bxe5 34. Nc4 Re1# 0-1